bitfinex-derivatives/quotes_ETHF0:USTF0_20260303
["timestamp","ask_amount","ask_price","bid_price","bid_amount"]
[1772558830870,2.32334047,1973.9,1972.7,0.00642751]
[1772558831271,2.32334047,1973.9,1972.8,2.60375455]
[1772558831779,2.32334047,1973.9,1972.7,0.00642751]
[1772558832176,2.32334047,1973.7,1972.7,0.00642751]
[1772558832676,2.32334047,1973.5,1972.3,2.35032455]
[1772558833277,2.32334047,1973.3,1972.3,2.35032455]
[1772558833770,2.32907218,1973.3,1972.3,2.35545276]
[1772558834679,2.57672047,1973.2,1972.3,2.35545276]
[1772558834877,8.81020047,1973.2,1971.7,0.00087567]
[1772558835379,6.24246684,1973.1,1971.7,0.00087567]
[1772558835676,0.2534,1973.1,1971.7,0.00087567]
[1772558835873,0.2534,1973.1,1971.7,0.00521953]
[1772558836069,12.73061666,1973.1,1971.7,0.00521953]
[1772558836269,6.48709,1973.1,1971.7,0.00521953]
[1772558836473,0.2534,1973.1,1971.7,0.00521953]
[1772558838187,0.2534,1973.1,1971.7,1.78212494]
[1772558838387,0.00573171,1973.3,1971.8,0.25356]
[1772558838888,0.25338,1973.2,1971.8,0.25356]
[1772558839088,0.25338,1973.2,1971.7,0.00521953]
[1772558839089,0.25344,1972.8,1971.7,0.00521953]
[1772558839691,0.00573171,1973.3,1971.8,6.49125]
[1772558840088,0.00573171,1973.3,1972.6,1.77690541]
[1772558840582,6.64,1974.2,1973.0,1.77690541]
[1772558840789,6.64,1974.2,1972.6,0.25345]
[1772558840790,6.64,1974.2,1972.6,6.48867]
[1772558840990,6.64,1974.2,1973.0,0.2534]
[1772558841189,6.64,1974.2,1972.5,0.25347]
[1772558841391,0.25327,1974.1,1972.5,0.25347]
[1772558841587,0.25736748,1974.1,1972.5,2.03037541]
[1772558841794,0.25736748,1974.1,1972.5,0.25347]
[1772558842288,0.25736748,1974.1,1972.6,1.77690541]
[1772558842688,0.25736748,1974.1,1972.5,0.25347]
[1772558842888,0.25736748,1974.1,1972.5,6.48895]
[1772558843094,0.00409748,1974.1,1972.9,0.25341]
[1772558843496,0.00409748,1974.1,1972.4,0.25348]
[1772558843994,0.25328,1974.0,1972.4,0.25348]
[1772558844293,0.25328,1974.0,1972.4,2.03038541]
[1772558844492,0.00409748,1974.1,1972.8,0.25342]
[1772558845687,0.00409748,1974.1,1973.2,6.48665]
[1772558845893,0.25318,1974.8,1973.2,0.25338]
[1772558846491,0.25318,1974.8,1973.2,2.03028541]
[1772558846690,0.25318,1974.8,1973.2,8.26356541]
[1772558846887,0.00623512,1974.8,1973.6,2.03023541]
[1772558847290,0.00623512,1974.8,1973.6,0.25333]
[1772558847492,0.00623512,1974.8,1973.9,0.25329]
[1772558848393,0.00623512,1974.8,1974.2,1.77690541]
[1772558848594,6.64,1975.5,1974.3,0.25324]
[1772558848794,9.41062534,1975.5,1974.3,0.25324]
[1772558849090,6.64,1975.5,1974.3,0.25324]
[1772558849292,3.02368534,1975.8,1974.3,0.25324]
[1772558849490,3.02849933,1975.8,1974.3,0.25324]
[1772558849690,2.77062534,1975.5,1974.3,0.25324]
[1772558849891,2.77062534,1975.5,1974.3,2.03014541]
[1772558851297,2.77062534,1975.5,1973.7,6.4849]
[1772558851694,2.77062534,1975.5,1974.1,0.25326]
[1772558852498,2.77062534,1975.5,1974.2,1.77690541]
[1772558852699,2.77062534,1975.2,1973.6,0.25333]
[1772558852899,2.77062534,1975.2,1973.7,1.77690541]
[1772558853098,2.77062534,1975.2,1973.6,0.25333]
[1772558853501,2.77062534,1975.2,1973.9,1.77690541]
[1772558853802,2.40671034,1975.1,1973.6,0.25333]
[1772558853999,2.40671034,1975.1,1973.8,1.77690541]
[1772558854503,2.40671034,1975.1,1974.0,0.25327]
[1772558854702,2.40671034,1975.1,1974.0,6.48401]
[1772558855096,2.40671034,1975.1,1974.0,0.25327]
[1772558855501,2.40671034,1975.1,1974.4,1.77690541]
[1772558856004,2.37541795,1975.4,1975.0,1.77690541]
[1772558856194,2.37541795,1975.4,1974.4,0.25322]
[1772558856597,2.37541795,1975.4,1974.6,1.77690541]
[1772558856898,2.37541795,1975.4,1974.4,0.25322]
[1772558857203,2.37541795,1975.4,1974.4,0.2571798]
[1772558857603,2.37541795,1975.4,1974.7,1.77690541]
[1772558858206,2.37541795,1975.4,1974.4,0.2571798]
[1772558858602,2.37541795,1975.4,1974.6,1.77690541]
[1772558858803,2.37541795,1975.4,1974.4,0.26242093]
[1772558858999,2.37541795,1975.4,1974.8,1.77690541]
[1772558859204,2.37541795,1975.4,1974.4,0.0039598]
[1772558859605,2.37541795,1975.4,1974.7,0.00588324]
[1772558860806,2.37541795,1975.4,1975.0,1.77690541]
[1772558861003,2.37541795,1975.4,1974.6,0.01645963]
[1772558861708,2.37541795,1975.4,1974.7,2.0465171]
[1772558862404,2.22874866,1975.7,1975.0,2.26210611]
[1772558863004,0.00481399,1975.8,1975.2,2.26210611]
[1772558863207,2.22874866,1976.5,1975.8,2.26210611]
[1772558863600,2.22874866,1976.5,1975.6,2.26210611]
[1772558863906,2.22874866,1976.5,1975.3,2.26210611]
[1772558864105,2.22874866,1976.5,1975.5,2.26210611]
[1772558864305,2.23527073,1976.5,1975.5,2.26210611]
[1772558865912,2.23527073,1976.5,1975.7,2.26210611]
[1772558866113,0.00652207,1976.5,1975.9,2.26210611]
[1772558866409,2.23527073,1976.5,1975.9,2.26210611]
[1772558867009,0.00652207,1976.5,1975.9,2.26210611]
[1772558867210,2.22874866,1976.7,1976.1,2.26210611]
[1772558867504,2.22874866,1977.0,1976.1,2.26210611]
[1772558868110,2.23266838,1977.0,1976.1,2.26210611]
[1772558868509,2.23266838,1977.0,1976.0,6.88802]
[1772558868714,2.23266838,1977.0,1976.1,2.2617167]
[1772558869416,2.2500216,1976.6,1975.6,2.2617167]
[1772558869615,2.2500216,1976.6,1975.3,2.2617167]
[1772558870116,2.2500216,1976.4,1975.3,2.2617167]
[1772558872019,2.2500216,1976.4,1975.1,8.8957167]
[1772558872519,2.2500216,1976.2,1975.1,8.8957167]
[1772558872718,2.2500216,1976.2,1975.1,6.634]
[1772558873315,2.2500216,1976.0,1974.6,2.2617167]
[1772558873923,2.2500216,1975.8,1974.6,2.2617167]
[1772558874324,2.2500216,1975.8,1974.6,2.26549483]
[1772558875322,2.2500216,1975.6,1974.6,2.26549483]
[1772558875619,2.25388973,1975.6,1974.6,2.26549483]
[1772558876415,2.25388973,1975.6,1974.8,2.2617167]
[1772558878624,2.25388973,1975.6,1974.6,2.26549483]
[1772558879222,2.25388973,1975.6,1974.6,0.00377813]
[1772558879522,2.2500216,1975.4,1974.6,0.00377813]
[1772558879922,2.2500216,1975.2,1974.4,6.633]
[1772558880519,2.2500216,1975.2,1974.5,2.2617167]
[1772558880727,2.2500216,1975.5,1974.6,2.5149167]
[1772558880918,2.2500216,1975.5,1974.6,2.51958208]
[1772558881116,2.2500216,1975.5,1974.6,2.26638208]
[1772558881318,2.2500216,1975.5,1974.6,0.00466538]
[1772558881522,2.2500216,1975.5,1974.6,2.26638208]
[1772558882023,2.2500216,1975.5,1974.8,2.2617167]
[1772558882423,0.00386813,1975.6,1975.0,2.2617167]
[1772558882721,0.00386813,1975.6,1974.6,0.00466538]
[1772558882722,0.00386813,1975.6,1975.2,2.2617167]
[1772558883426,2.25388973,1975.6,1974.7,2.2617167]
[1772558884027,2.25388973,1975.6,1974.9,2.2617167]
[1772558884520,2.25388973,1975.6,1974.6,0.00466538]
[1772558884722,0.25311,1975.3,1974.6,0.00466538]
[1772558884925,2.2500216,1975.2,1974.2,6.634]
[1772558885127,2.2500216,1975.0,1974.1,2.2617167]
[1772558885330,6.51160976,1975.1,1973.8,2.2617167]
[1772558885331,2.2500216,1974.8,1973.8,2.2617167]
[1772558885930,2.2500216,1974.8,1973.8,2.2682355]
[1772558888437,2.2500216,1975.0,1974.2,2.2617167]
[1772558889034,2.2500216,1975.3,1974.2,2.2617167]
[1772558889236,2.2500216,1975.1,1974.2,2.2617167]
[1772558889537,2.2500216,1975.1,1974.4,2.2617167]
[1772558890137,2.2500216,1975.1,1973.9,2.2617167]
[1772558891537,2.2500216,1974.9,1973.9,2.2617167]
[1772558892233,2.2500216,1974.9,1974.0,2.5149967]
[1772558892537,2.2500216,1975.2,1974.0,2.5149967]
[1772558892738,2.2500216,1975.1,1974.0,2.5149967]
[1772558893333,2.2500216,1975.1,1974.4,2.2617167]
[1772558893534,2.2500216,1975.4,1974.4,2.2617167]
[1772558893736,2.2500216,1975.2,1974.3,0.25323]
[1772558894129,2.2500216,1975.2,1974.3,2.5149467]
[1772558894530,2.2500216,1975.2,1974.6,2.2617167]
[1772558894732,2.2500216,1975.5,1974.8,2.2617167]
[1772558897234,2.2500216,1975.5,1974.7,0.25319]
[1772558897537,2.2500216,1975.5,1974.7,2.5149067]
[1772558898534,2.2500216,1975.5,1974.5,2.25879303]
[1772558898832,2.13725517,1975.3,1974.3,9.14803303]
[1772558899036,2.13725517,1975.3,1974.4,2.25879303]
[1772558899440,2.13725517,1975.5,1974.8,2.25879303]
[1772558900035,0.00386813,1975.6,1975.0,2.08402609]
[1772558900236,0.00386813,1975.6,1975.2,2.08402609]
[1772558900436,2.08883355,1975.9,1975.2,2.09042837]
[1772558901038,6.32069614,1976.3,1975.2,2.09042837]
[1772558901039,2.08883355,1975.8,1975.2,2.09042837]
[1772558901439,2.0941443,1975.8,1975.2,2.09042837]
[1772558901742,2.0941443,1975.8,1974.8,2.08402609]
[1772558902141,0.00531075,1975.8,1975.0,2.08402609]
[1772558902641,2.0941443,1975.8,1975.2,2.08402609]
[1772558902943,2.0941443,1975.8,1975.2,0.00382578]
[1772558903338,2.0941443,1975.8,1975.2,2.08785187]
[1772558904038,0.00531075,1975.8,1975.2,2.08785187]
[1772558904844,2.0941443,1975.8,1975.2,0.00382578]
[1772558905046,2.0941443,1975.8,1975.2,2.08785187]
[1772558905242,0.00531075,1975.8,1975.2,2.08785187]
[1772558906343,0.00531075,1975.8,1975.4,2.08402609]
[1772558906642,2.08883355,1976.1,1975.4,2.08402609]
[1772558907239,2.08883355,1976.4,1975.4,2.08402609]
[1772558907444,2.09486117,1976.4,1975.6,2.08402609]
[1772558907640,0.00602762,1976.4,1976.0,2.08402609]
[1772558907841,2.08883355,1976.6,1976.0,2.08402609]
[1772558908043,2.08883355,1976.6,1975.7,2.08402609]
[1772558908847,2.09262716,1976.6,1975.8,0.25305]
[1772558909147,2.09262716,1976.6,1975.9,2.08402609]
[1772558909350,2.09262716,1976.6,1975.4,2.08402609]
[1772558909949,2.34557716,1976.6,1975.4,2.08402609]
[1772558910256,2.08883355,1976.4,1975.4,2.08402609]
[1772558910663,2.08883355,1976.0,1975.2,0.00382578]
[1772558910956,2.08883355,1975.8,1975.2,0.00382578]
[1772558911847,2.08883355,1975.8,1974.6,2.08402609]
[1772558912050,2.08883355,1975.6,1974.6,2.08402609]
[1772558912856,2.08883355,1975.6,1974.8,2.08402609]
[1772558914052,2.08883355,1975.6,1974.6,2.08976034]
[1772558914955,2.08883355,1975.4,1974.6,2.08976034]
[1772558917154,2.08883355,1975.8,1974.6,2.34296034]
[1772558917356,2.08883355,1975.9,1975.1,2.08402609]
[1772558917555,2.08883355,1975.9,1974.9,2.08402609]
[1772558917756,2.08883355,1975.7,1974.9,2.08402609]
[1772558918856,2.08883355,1976.0,1974.9,2.33718609]
[1772558919156,4.22327355,1976.1,1974.9,2.33718609]
[1772558919157,2.08883355,1975.8,1974.9,2.33718609]
[1772558919755,2.08883355,1975.8,1974.9,2.08402609]
[1772558920160,2.08883355,1975.8,1975.1,2.08402609]
[1772558920565,2.08883355,1976.0,1975.3,2.08402609]
[1772558920759,2.08883355,1976.3,1975.5,2.08402609]
[1772558922161,8.50536909,1976.2,1975.5,2.08402609]
[1772558922359,2.08883355,1976.2,1975.5,2.08402609]
[1772558923258,2.08883355,1976.2,1975.4,0.2531]
[1772558923764,4.22327355,1976.5,1975.3,2.08402609]
[1772558923765,2.08883355,1976.0,1975.3,2.08402609]
[1772558925366,2.08883355,1976.0,1975.2,6.634]
[1772558925565,2.08883355,1976.0,1975.2,8.71802609]
[1772558926361,2.08883355,1976.0,1975.3,2.08402609]
[1772558927167,2.08883355,1976.0,1975.2,6.634]
[1772558927461,2.08883355,1976.0,1975.2,8.71802609]
[1772558928966,2.08883355,1976.0,1975.3,2.06674606]
[1772558929872,2.34186355,1976.0,1974.9,2.31989606]
[1772558930462,2.08883355,1976.0,1974.9,2.31989606]
[1772558930666,2.08883355,1976.0,1975.3,2.06674606]
[1772558931670,2.08883355,1976.0,1975.2,2.31986606]
[1772558932169,2.14053808,1975.8,1975.2,2.31986606]
[1772558932371,2.14053808,1975.8,1975.2,2.06674606]
[1772558932571,2.14053808,1975.8,1975.0,2.06674606]
[1772558932773,2.14053808,1975.8,1974.8,2.31991606]
[1772558933071,2.14053808,1975.6,1974.8,0.25317]
[1772558933672,2.14053808,1975.6,1974.8,2.31991606]
[1772558933873,2.14053808,1975.6,1974.6,2.07248031]
[1772558934069,2.14053808,1975.4,1974.6,0.00573425]
[1772558934471,2.14053808,1975.2,1974.2,2.06674606]
[1772558934973,2.14053808,1975.2,1974.4,2.06674606]
[1772558935372,2.14053808,1975.6,1974.4,2.06674606]
[1772558935575,2.14053808,1975.4,1974.4,2.07254111]
[1772558936472,2.14053808,1975.4,1974.4,0.00579505]
[1772558936873,2.14053808,1975.4,1974.4,2.07254111]
[1772558937074,6.48010958,1975.3,1974.4,2.07254111]
[1772558937373,2.14053808,1975.2,1974.4,2.07254111]
[1772558937970,2.14053808,1975.2,1974.6,2.06674606]
[1772558940372,2.14533519,1975.6,1974.8,2.06674606]
[1772558940573,2.14053808,1975.4,1974.8,2.06674606]
[1772558940775,2.14053808,1975.4,1974.6,2.06674606]
[1772558941879,2.14533519,1975.6,1974.8,2.06674606]
[1772558942079,2.14533519,1975.6,1975.0,2.06674606]
[1772558942582,0.00479711,1975.6,1975.2,2.06674606]
[1772558943080,2.14053808,1975.8,1975.2,2.06674606]
[1772558944083,2.14548864,1975.8,1975.2,2.06674606]
[1772558946588,2.14053808,1976.2,1975.4,2.06674606]
[1772558947187,2.14053808,1976.2,1975.5,2.31983606]
[1772558947381,2.14053808,1976.0,1975.2,2.06674606]
[1772558947586,2.14682374,1976.0,1975.2,2.06674606]
[1772558947783,0.00628566,1976.0,1975.4,2.06674606]
[1772558948585,2.14682374,1976.0,1975.4,2.06674606]
[1772558949385,2.14682374,1976.0,1975.3,0.25311]
[1772558950387,2.14682374,1976.0,1975.3,2.31985606]
[1772558951290,2.14682374,1976.0,1975.3,0.25311]
[1772558951491,2.14682374,1976.0,1974.9,2.31990606]
[1772558952087,2.14682374,1976.0,1975.3,2.06674606]
[1772558953992,2.14682374,1976.0,1974.9,2.06674606]
[1772558954186,2.14053808,1975.8,1974.9,2.06674606]
[1772558955188,2.14682374,1976.0,1975.5,2.06674606]
[1772558955389,2.14682374,1976.0,1975.4,0.25309]
[1772558955896,2.14682374,1976.0,1975.4,2.31983606]
[1772558957490,2.14682374,1976.0,1975.4,0.25309]
[1772558957691,2.14682374,1976.0,1975.4,2.31983606]
[1772558958694,2.14682374,1976.0,1975.0,0.25315]
[1772558958994,2.14682374,1976.0,1975.1,1.9631057]
[1772558959903,0.00628566,1976.0,1975.3,1.99222535]
[1772558960497,0.00628566,1976.0,1975.5,1.99222535]
[1772558960699,1.9500462,1976.0,1975.5,1.99222535]
[1772558961795,0.00628566,1976.0,1975.5,1.99222535]
[1772558962297,1.9500462,1976.0,1975.5,1.99222535]
[1772558965293,1.94376054,1976.4,1975.5,1.99222535]
[1772558965498,1.94376054,1976.4,1975.7,1.99222535]
[1772558966496,1.94827804,1976.4,1975.7,1.99222535]
[1772558967289,8.34547612,1976.3,1975.7,1.99222535]
[1772558967490,1.94376054,1976.3,1975.7,1.99222535]
[1772558967896,1.94827804,1976.4,1975.7,1.99222535]
[1772558968099,0.0045175,1976.4,1975.9,1.99222535]
[1772558968294,1.94376054,1976.9,1976.1,1.99222535]
[1772558968496,1.94376054,1976.9,1976.3,1.99222535]
[1772558968994,6.17587577,1977.3,1976.5,1.99222535]
[1772558969197,7.86531451,1977.6,1976.6,2.24517535]
[1772558969198,1.94376054,1977.6,1976.6,2.24517535]
[1772558969396,1.94935677,1977.6,1976.6,2.24517535]
[1772558971494,1.94935677,1977.6,1976.6,1.99222535]
[1772558971694,1.94935677,1977.6,1976.2,1.99222535]
[1772558971889,1.94376054,1977.4,1976.2,1.99222535]
[1772558975503,1.94376054,1977.4,1976.4,1.99222535]
[1772558976599,1.94376054,1977.4,1976.2,1.99222535]
[1772558976901,1.94376054,1977.2,1976.2,1.99222535]
[1772558977097,1.94376054,1977.2,1976.1,6.632]
[1772558977497,1.94376054,1977.2,1975.9,0.00550383]
[1772558977498,1.94376054,1977.0,1975.9,0.00550383]
[1772558977904,1.94376054,1976.8,1975.9,0.00550383]
[1772558978204,6.4109698,1976.7,1975.9,0.00550383]
[1772558978506,1.94376054,1976.6,1975.9,0.00550383]
[1772558980600,1.94376054,1976.6,1975.6,1.99222535]
[1772558981808,1.94376054,1976.6,1975.6,2.2491823]
[1772558982307,1.94376054,1976.8,1975.9,1.99222535]
[1772558982506,1.94376054,1977.2,1976.1,1.99222535]
[1772558982706,1.94376054,1977.0,1976.1,1.99222535]
[1772558983110,1.94376054,1977.3,1976.3,1.99222535]
[1772558983303,8.35667015,1977.2,1976.3,1.99222535]
[1772558983607,1.94376054,1977.2,1976.3,1.99222535]
[1772558984807,1.94376054,1977.4,1976.5,1.99222535]
[1772558985409,1.94376054,1977.4,1976.7,1.99222535]
[1772558985711,1.94935677,1977.6,1976.7,1.99222535]
[1772558986916,6.41273422,1977.5,1976.5,1.99222535]
[1772558987117,1.94376054,1977.4,1976.5,1.99222535]
[1772558988718,1.94376054,1977.4,1976.5,2.24518535]
[1772558993216,1.94376054,1977.4,1976.5,1.99222535]
[1772558993413,2.05431676,1977.1,1976.1,1.96920856]
[1772558994116,2.05431676,1976.9,1975.9,8.60020856]
[1772558994524,2.05431676,1976.9,1976.0,1.96920856]
[1772558998121,2.05431676,1976.9,1976.2,1.96920856]
[1772558999728,2.05431676,1976.9,1976.1,2.22221856]
[1772559000226,2.76401346,1976.8,1975.8,1.96920856]
[1772559000427,2.05431676,1976.6,1975.6,1.97309551]
[1772559000629,2.05431676,1976.6,1975.9,1.96920856]
[1772559001029,2.05431676,1976.6,1976.1,1.96920856]
[1772559001335,2.05431676,1977.0,1976.3,1.96920856]
[1772559001931,2.05431676,1977.0,1975.7,0.25305]
[1772559002133,2.05431676,1977.0,1975.8,1.96920856]
[1772559002431,2.05431676,1976.8,1975.8,1.96920856]
[1772559002827,2.05431676,1976.6,1975.8,1.96920856]
[1772559003530,2.05431676,1976.4,1975.6,1.97309551]
[1772559003835,2.05431676,1976.1,1974.7,2.22238856]
[1772559004136,6.99612869,1976.2,1974.7,2.22238856]
[1772559004137,2.05431676,1975.9,1974.7,2.22238856]
[1772559004336,2.05431676,1976.5,1975.1,1.96920856]
[1772559004632,2.05431676,1976.3,1975.2,1.96920856]
[1772559006029,2.05431676,1976.3,1975.4,1.96920856]
[1772559006232,2.05431676,1976.3,1975.2,1.96920856]
[1772559006733,2.05431676,1976.1,1975.1,0.00538735]
[1772559007338,2.05431676,1976.1,1975.1,1.97459591]
[1772559007534,2.05431676,1976.1,1975.1,0.00538735]
[1772559007832,2.76401346,1975.6,1974.5,1.96920856]
[1772559008036,2.05431676,1975.5,1974.5,1.96920856]
[1772559008831,2.05431676,1975.5,1974.5,1.97415173]
[1772559009338,2.05431676,1975.5,1974.9,1.96920856]
[1772559009937,2.05431676,1975.7,1974.9,1.96920856]
[1772559010734,2.05431676,1975.9,1975.1,1.96920856]
[1772559010938,2.05431676,1975.9,1975.0,0.25315]
[1772559011139,2.05431676,1975.9,1974.6,1.96920856]
[1772559012235,2.05431676,1975.9,1974.9,2.22236856]
[1772559013235,2.05431676,1975.9,1974.9,1.96920856]
[1772559014042,2.05431676,1975.9,1974.7,8.60120856]
[1772559014339,2.05431676,1975.9,1974.8,1.96920856]
[1772559014945,2.05431676,1975.8,1974.6,1.96920856]
[1772559016240,2.05431676,1975.8,1974.8,1.96920856]
[1772559016741,2.05431676,1975.8,1975.0,1.96920856]
[1772559016934,2.05431676,1975.8,1974.9,2.22236856]
[1772559018544,4.23211523,1976.4,1974.5,0.00494317]
[1772559018545,1.93741021,1975.6,1974.5,0.00494317]
[1772559019242,1.93741021,1975.6,1974.5,1.95087303]
[1772559019447,1.93741021,1975.6,1974.7,1.94592986]
[1772559020643,1.93741021,1975.6,1974.9,2.0004107]
[1772559020845,1.93741021,1975.6,1974.5,2.00535387]
[1772559021437,1.93741021,1975.6,1974.7,2.0004107]
[1772559022949,1.93741021,1975.6,1974.9,2.0004107]
[1772559023447,1.93741021,1975.6,1975.0,2.2535607]
[1772559024542,1.93741021,1975.6,1974.8,2.0004107]
[1772559024744,1.96214011,1975.2,1974.0,2.0004107]
[1772559024948,1.96214011,1975.0,1974.0,2.0004107]
[1772559025450,1.96214011,1975.0,1974.1,2.2536807]
[1772559025645,1.96214011,1975.0,1974.1,2.25923313]
[1772559025845,1.96728755,1975.0,1974.1,2.25923313]
[1772559026048,1.96728755,1975.0,1974.1,0.25882243]
[1772559026248,1.96728755,1975.0,1974.1,2.25923313]
[1772559026448,1.96728755,1975.0,1974.1,0.00555243]
[1772559026647,1.96214011,1974.7,1973.6,0.25332]
[1772559026950,1.96214011,1974.5,1973.6,2.2537307]
[1772559027153,1.96214011,1974.3,1973.2,2.0004107]
[1772559027746,1.96214011,1974.3,1973.2,0.0041664]
[1772559027943,4.72615357,1974.1,1973.2,0.0041664]
[1772559028155,1.96214011,1974.0,1973.2,0.0041664]
[1772559028747,1.96214011,1974.0,1972.1,0.25352]
[1772559028949,1.96214011,1974.0,1972.0,2.76401346]
[1772559028950,1.96214011,1973.4,1972.4,2.0004107]
[1772559029554,1.96214011,1972.4,1970.7,9.87029221]
[1772559029744,1.96214011,1972.4,1970.7,2.00603026]
[1772559029745,1.96214011,1971.9,1970.7,2.00603026]
[1772559030046,18.7659393,1972.3,1970.7,2.00603026]
[1772559030047,1.96214011,1971.6,1970.7,2.00603026]
[1772559030253,1.96214011,1971.9,1970.9,2.0004107]
[1772559030453,1.96214011,1971.9,1971.0,2.0004107]
[1772559030651,0.00388247,1972.4,1971.5,2.0004107]
[1772559031049,1.96602258,1972.4,1971.5,2.0004107]
[1772559031357,1.96602258,1972.4,1970.9,2.0004107]
[1772559031646,1.96602258,1972.4,1970.9,6.24029]
[1772559031847,1.96602258,1972.4,1970.1,0.08829238]
[1772559031848,0.00388247,1972.4,1971.7,2.0004107]
[1772559032044,1.96214011,1973.0,1971.9,2.0004107]
[1772559032350,1.96214011,1973.3,1972.3,2.0004107]
[1772559032952,1.96654325,1973.3,1972.3,2.0042405]
[1772559033949,1.96654325,1973.3,1972.3,0.0038298]
[1772559034450,1.96654325,1973.3,1972.3,2.0042405]
[1772559035044,1.96654325,1973.3,1972.3,0.0038298]
[1772559035854,1.96214011,1973.0,1971.4,2.0004107]
[1772559036353,1.96214011,1973.0,1971.5,2.2540107]
[1772559036550,1.96214011,1973.0,1971.6,2.0004107]
[1772559036750,1.96214011,1973.0,1971.6,2.00409649]
[1772559037562,1.96214011,1973.0,1971.8,2.0004107]
[1772559038956,1.96214011,1973.0,1971.7,0.25358]
[1772559039255,1.96214011,1973.0,1971.6,0.00368579]
[1772559039453,1.96214011,1973.0,1971.6,2.00409649]
[1772559039649,1.96214011,1973.0,1971.7,2.0004107]
[1772559039855,1.96214011,1973.0,1972.0,2.0004107]
[1772559040056,1.96214011,1973.2,1972.2,2.0004107]
[1772559040760,1.96214011,1973.2,1972.0,2.0004107]
[1772559041855,1.96214011,1973.2,1972.3,2.0004107]
[1772559042059,1.96214011,1973.2,1972.4,0.25349]
[1772559042253,1.96214011,1973.2,1972.4,2.2539007]
[1772559042856,0.00440314,1973.3,1972.4,2.2539007]
[1772559045164,1.96654325,1973.3,1972.4,2.2539007]
[1772559045565,1.96214011,1973.7,1972.7,2.0004107]
[1772559045768,1.96214011,1974.3,1972.9,2.0004107]
[1772559046459,1.96214011,1974.3,1973.1,2.0004107]
[1772559046660,1.96647745,1974.3,1973.3,2.0004107]
[1772559047759,1.96647745,1974.3,1973.4,2.2537707]
[1772559048364,0.00433734,1974.3,1973.4,2.2537707]
[1772559048660,0.00433734,1974.3,1973.9,1.92282086]
[1772559049061,1.91928661,1974.7,1973.9,1.92282086]
[1772559049665,1.91928661,1975.1,1973.9,1.92282086]
[1772559049969,1.9255036,1975.1,1973.9,1.92282086]
[1772559050165,1.9255036,1975.1,1974.1,1.92282086]
[1772559050568,1.9255036,1975.1,1973.9,1.92282086]
[1772559050870,1.9255036,1975.1,1973.9,2.17610086]
[1772559051765,1.9255036,1975.1,1973.9,1.92282086]
[1772559052269,1.9255036,1975.1,1974.0,2.17610086]
[1772559052965,0.00621699,1975.1,1974.4,2.17604086]
[1772559053366,1.9255036,1975.1,1974.4,1.92282086]
[1772559053668,1.9255036,1975.1,1973.9,2.17611086]
[1772559055266,2.1786436,1975.1,1973.7,1.92282086]
[1772559055976,1.91928661,1974.8,1973.7,1.92282086]
[1772559056375,1.91928661,1974.8,1973.5,1.92282086]
[1772559056871,1.91928661,1974.6,1973.1,0.00640909]
[1772559057076,1.91928661,1974.4,1973.1,1.92922995]
[1772559058181,1.91928661,1974.0,1973.1,0.00640909]
[1772559059477,1.91928661,1974.0,1973.1,1.92922995]
[1772559060175,1.91928661,1974.5,1973.5,1.92282086]
[1772559060375,4.21981458,1974.8,1974.0,1.92282086]
[1772559060376,1.91928661,1974.8,1974.0,1.92282086]
[1772559060678,1.91928661,1974.8,1973.8,1.92282086]
[1772559061675,1.91928661,1974.8,1973.8,2.17612086]
[1772559064882,1.91928661,1975.0,1973.8,2.17612086]
[1772559067979,1.91928661,1974.8,1973.4,1.92282086]
[1772559068576,1.91928661,1974.6,1973.6,1.92282086]
[1772559068777,2.78115655,1975.1,1973.8,1.92282086]
[1772559068778,4.22603157,1975.1,1973.8,1.92282086]
[1772559068978,1.91928661,1975.0,1974.0,1.92282086]
[1772559069177,1.91928661,1975.0,1973.9,0.25329]
[1772559069380,1.91928661,1974.6,1973.4,2.17617086]
[1772559070282,1.91928661,1974.6,1973.0,6.636]
[1772559070283,1.91928661,1974.4,1973.0,6.88941]
[1772559070487,1.91928661,1974.4,1973.2,1.92282086]
[1772559071191,1.91928661,1974.2,1973.2,1.92282086]
[1772559071391,1.91928661,1974.0,1973.0,8.81223086]
[1772559071594,1.91928661,1974.0,1973.1,1.92922995]
[1772559071790,1.91928661,1974.0,1973.1,0.00640909]
[1772559072189,1.91928661,1973.8,1973.1,0.00640909]
[1772559073491,1.91928661,1973.8,1972.7,1.92282086]
[1772559073892,1.91928661,1973.6,1972.3,8.55882086]
[1772559074091,1.91928661,1973.4,1972.3,6.636]
[1772559074297,1.91928661,1973.4,1972.6,1.92282086]
[1772559074495,1.92433258,1973.4,1972.6,0.00570291]
[1772559075398,1.91928661,1973.2,1971.7,1.92282086]
[1772559075697,1.91928661,1973.0,1971.7,1.92282086]
[1772559076091,1.91928661,1972.6,1971.0,1.92282086]
[1772559076291,1.91928661,1972.6,1971.4,1.92282086]
[1772559076493,1.91928661,1972.4,1971.2,1.92282086]
[1772559076998,1.91928661,1972.2,1970.9,1.92904702]
[1772559077188,1.91928661,1971.8,1970.9,0.00622616]
[1772559077494,1.91928661,1971.2,1969.5,1.92282086]
[1772559077791,1.91928661,1971.2,1970.1,1.92282086]
[1772559078099,1.91928661,1971.2,1970.3,1.85968754]
[1772559078299,1.91928661,1971.2,1970.3,1.86612831]
[1772559079090,1.72411676,1971.7,1970.4,2.11342754]
[1772559079292,1.72411676,1971.7,1970.5,1.85968754]
[1772559079696,1.72411676,1971.7,1970.7,1.81656315]
[1772559080299,1.72411676,1971.7,1970.4,1.81656315]
[1772559080994,1.72411676,1971.7,1970.4,2.07029315]
[1772559081203,1.72411676,1971.7,1970.5,1.81656315]
[1772559082200,1.72411676,1971.7,1970.3,0.00644077]
[1772559084097,9.01857758,1971.8,1970.3,0.00644077]
[1772559084098,1.74966236,1971.5,1970.3,0.00644077]
[1772559085897,1.74966236,1971.5,1970.3,1.82300392]
[1772559086813,1.74966236,1971.5,1970.4,1.81656315]
[1772559088201,1.74966236,1971.5,1970.3,0.26019077]
[1772559088503,1.74966236,1971.5,1970.3,0.00644077]
[1772559088707,1.74966236,1971.5,1970.3,1.82300392]
[1772559089008,1.74966236,1971.3,1970.3,0.00644077]
[1772559089508,1.74966236,1971.3,1969.7,2.07038315]
[1772559090508,1.74966236,1971.3,1969.7,2.07493769]
[1772559090805,1.74966236,1971.3,1970.0,1.81656315]
[1772559091302,1.74966236,1971.3,1969.9,0.25381]
[1772559091506,1.74966236,1971.3,1969.8,1.81656315]
[1772559091808,1.74966236,1970.7,1969.7,0.00455454]
[1772559092104,1.74966236,1970.7,1969.7,1.82111769]
[1772559092310,1.74966236,1970.7,1969.9,1.81656315]
[1772559092904,1.74966236,1971.2,1969.9,1.81656315]
[1772559093201,1.74966236,1971.7,1970.0,1.81656315]
[1772559093402,1.75541038,1971.8,1970.9,0.25368]
[1772559093601,1.75541038,1971.8,1970.8,1.81656315]
[1772559094306,1.75541038,1971.8,1970.6,1.81656315]
[1772559094709,1.75541038,1971.8,1971.0,1.81656315]
[1772559094710,0.00574802,1971.8,1971.0,1.81656315]
[1772559095209,1.75541038,1971.8,1971.1,0.25365]